lending/lending_fUSD_20250808
["ID","MTS","AMOUNT","RATE_DAILY","PERIOD"]
[377963249,1754631048680,-400.0,0.00018884,2]
[377963250,1754631048690,-400.0,0.00018884,2]
[377963251,1754631048699,-1226.4,0.00018884,2]
[377963252,1754631048711,-492.38,0.00018884,2]
[377963253,1754631048721,-580.04,0.00018884,2]
[377963254,1754631048730,-1660.62,0.00018884,2]
[377963255,1754631048740,-423.57,0.00018884,2]
[377963256,1754631048750,-1848.91,0.00018884,2]
[377963257,1754631048759,-403.92,0.00018884,2]
[377963258,1754631048770,-400.0,0.00018884,2]
[377963259,1754631048780,-563.06,0.00018884,2]
[377963260,1754631048790,-1085.11,0.00018884,2]
[377963261,1754631048800,-1609.4,0.00018884,2]
[377963262,1754631048809,-400.0,0.00018884,2]
[377963263,1754631048820,-400.0,0.00018884,2]
[377963264,1754631048830,-400.0,0.00018884,2]
[377963265,1754631048839,-400.0,0.00018884,2]
[377963266,1754631048849,-520.81,0.00018884,2]
[377963267,1754631048859,-2912.57,0.00018884,2]
[377963268,1754631048869,-400.0,0.00018884,2]
[377963269,1754631048879,-700.14,0.00018884,2]
[377963270,1754631048888,-1322.27,0.00018884,2]
[377963271,1754631048898,-513.94,0.00018884,2]
[377963272,1754631048908,-7661.49,0.00018884,2]
[377963273,1754631048918,-2362.81,0.00018884,2]
[377963274,1754631048928,-151.0,0.00018885,2]
[377963275,1754631048938,-292.89019098,0.00018885,2]
[377963276,1754631048949,-487.14310492,0.00018887,2]
[377963277,1754631048960,-300.0,0.00018887,2]
[377963278,1754631048969,-300.0,0.00018896,2]
[377963279,1754631048979,-15131.70445916,0.000189,2]
[377963280,1754631048989,-1000.0,0.000189,2]
[377963281,1754631048999,-1000.0,0.000189,2]
[377963282,1754631049009,-1000.0,0.000189,2]
[377963283,1754631049020,-892.0,0.000189,2]
[377963284,1754631049030,-1000.0,0.000189,2]
[377963285,1754631049040,-468.56263734,0.000189,2]
[377963286,1754631049050,-750.0,0.000189,2]
[377963287,1754631049059,-1879.60722301,0.000189,2]
[377963288,1754631049070,-7380.06512451,0.000189,2]
[377963289,1754631049080,-214.4879105,0.000189,2]
[377963290,1754631049090,-156.70930736,0.000189,2]
[377963291,1754631049099,-287.49146604,0.000189,2]
[377963292,1754631049109,-3759.0741861,0.000189,2]
[377963293,1754631049119,-487.14310492,0.000189,2]
[377963294,1754631049128,-178.09,0.00018907,2]
[377963295,1754631049138,-500.0,0.00018915,2]
[377963296,1754631049148,-168.29,0.00018927,2]
[377963297,1754631049157,-500.0,0.0001897,2]
[377963298,1754631049168,-500.0,0.00018973,2]
[377963299,1754631049177,-500.0,0.00018973,2]
[377963300,1754631049187,-500.0,0.00018973,2]
[377963301,1754631049197,-501.13444185,0.00018973,2]
[377963302,1754631049207,-206.62084597,0.00018973,2]
[377963303,1754631049217,-500.0,0.00018973,2]
[377963304,1754631049226,-500.0,0.00018973,2]
[377963305,1754631049236,-211.29152775,0.00018973,2]
[377963306,1754631049246,-500.0,0.00018973,2]
[377963307,1754631049256,-519.87176113,0.00018973,2]
[377963308,1754631049266,-164.61390416,0.00018973,2]
[377963309,1754631049275,-500.0,0.00018973,2]
[377963310,1754631049286,-500.0,0.00018973,2]
[377963311,1754631049295,-500.0,0.00018973,2]
[377963312,1754631049305,-500.0,0.00018973,2]
[377963313,1754631049315,-600.0,0.00018974,2]
[377963314,1754631049325,-298.01,0.00018974,2]
[377963315,1754631049335,-150.0,0.00018983,2]
[377963316,1754631049345,-168.22970333,0.0001899,2]
[377963317,1754631049355,-239.4566,0.00018999,2]
[377963318,1754631049365,-1000.0,0.00018999,2]
[377963319,1754631049375,-1336.03,0.00018999,2]
[377963320,1754631049385,-1517.92,0.00018999,2]
[377963321,1754631049395,-400.0,0.00018999,2]
[377963322,1754631049405,-1294.9,0.00018999,2]
[377963323,1754631049415,-2057.54,0.00018999,2]
[377963324,1754631049425,-1284.68,0.00018999,2]
[377963325,1754631049434,-1008.35,0.00018999,2]
[377963326,1754631049445,-1980.83,0.00018999,2]
[377963327,1754631049455,-643.08,0.00018999,2]
[377963328,1754631049466,-5264023.53789091,0.00019,2]
[377963329,1754631049695,-2656.71968123,0.00019,2]
[377963330,1754631049707,-1953.90000001,0.00019,2]
[377963331,1754631049719,-251.9688741,0.00019,2]
[377963332,1754631051548,-124.00472955,0.00018848,2]
[377963333,1754631051566,-384.02839631,0.00018848,2]
[377963334,1754631079965,-137.14908593,0.00018848,2]
[377963335,1754631079994,-125.70182814,0.00018848,2]
[377963336,1754631116504,-52.962452,0.00018753,2]
[377963337,1754631116521,-294.075096,0.00018753,2]
[377963338,1754631116532,-52.962452,0.00018861,2]
[377963339,1754631121145,300.9,0.00030136,120]
[377963340,1754631152793,-711.28,0.00018861,2]
[377963341,1754631271413,-296.57745615,0.00018026,3]
[377963342,1754631274323,-173.08432096,0.00018026,3]
[377963343,1754631277178,-196.33822289,0.00018026,3]
[377963344,1754631277202,-86.26745615,0.00018081,2]
[377963345,1754631279880,-70.32254385,0.00018081,2]
[377963346,1754631321135,-209.88846207,0.00018221,2]
[377963347,1754631437720,177.4326996,0.000301,120]
[377963348,1754631504018,216.37583219,0.0003,120]
[377963349,1754631511987,-226.67846207,0.00018221,2]
[377963350,1754631512126,-74.43307586,0.00018221,2]
[377963351,1754631518887,-423.32,0.00018221,2]
[377963352,1754631536776,-897.17,0.00018422,4]
[377963353,1754631555413,516.0,0.00017221,2]
[377963354,1754631568956,1000.0,0.00017873,2]
[377963355,1754631612876,297.17,0.00015068,2]
[377963356,1754631613074,297.17,0.00016657,2]
[377963357,1754631618672,-155.5454894,0.00018246,2]
[377963358,1754631738211,186.8017,0.00018146,2]
[377963359,1754631744466,413.1983,0.00017865,2]
[377963360,1754631744494,4973.8617,0.00017865,2]
[377963361,1754631775567,179.73,0.0001786,2]
[377963362,1754631780388,2394.97313418,0.000165,2]
[377963363,1754631795962,510.0,0.00017221,2]
[377963364,1754631817299,175.0,0.0001784,7]
[377963365,1754631913708,150.0,0.00017088,2]
[377963366,1754631913846,150.0,0.00017088,2]
[377963367,1754631913899,150.0,0.00017721,2]
[377963368,1754631915500,150.0,0.00017088,2]
[377963369,1754631922032,150.0,0.00017088,2]
[377963370,1754631922366,150.0,0.00017088,2]
[377963371,1754631925881,150.0,0.00017088,2]
[377963372,1754631933520,270.05132164,0.00017088,2]
[377963373,1754631933556,150.0,0.00017088,2]
[377963374,1754631937530,150.0,0.00017088,2]
[377963375,1754631957431,259.36,0.00017818,2]
[377963376,1754632015796,264.42,0.00013699,2]
[377963377,1754632017432,418.19,0.00017806,2]
[377963378,1754632018829,418.19,0.0002671,120]
[377963379,1754632023028,470.58,0.00017806,2]
[377963380,1754632023380,-150.0,0.00018037,2]
[377963381,1754632023409,-2.99549832,0.00018037,2]
[377963382,1754632026179,-147.00450168,0.00018037,2]
[377963383,1754632040380,608.51,0.00017821,2]
[377963384,1754632091574,1000.0,0.00030136,120]
[377963386,1754632121678,156.59,0.00017801,2]
[377963387,1754632135085,12252.87,0.00017798,2]
[377963388,1754632188830,150.0,0.0001748,2]
[377963389,1754632189192,470.30941568,0.00017559,2]
[377963390,1754632189539,551.59746283,0.00017639,2]
[377963391,1754632189805,632.88550998,0.00017718,2]
[377963392,1754632190141,714.17355714,0.00017798,2]
[377963393,1754632190535,795.46160429,0.00017877,2]
[377963394,1754632190776,876.74965144,0.00017957,2]
[377963395,1754632191730,-203.04322893,0.00018036,2]
[377963396,1754632197344,-166.66666666,0.00018036,2]
[377963397,1754632201319,-228.91,0.00018036,2]
[377963398,1754632204914,-151.0,0.00018036,2]
[377963399,1754632208026,-198.63705878,0.00018036,2]
[377963400,1754632211591,-9.78074423,0.00018036,2]
[377963403,1754632232179,-250.0,0.00018076,2]
[377963404,1754632232189,-150.0,0.00018076,2]
[377963405,1754632232199,-1039.32574575,0.00018116,2]
[377963406,1754632232208,-250.0,0.00018168,2]
[377963407,1754632232217,-1120.61379291,0.00018195,2]
[377963408,1754632232227,-164.40740082,0.00018246,2]
[377963409,1754632232237,-150.0,0.00018246,2]
[377963410,1754632232246,-141.6245106,0.00018246,2]
[377963411,1754632232256,-1201.90184006,0.00018275,2]
[377963412,1754632232265,-150.0,0.00018353,2]
[377963413,1754632232275,-1283.18988721,0.00018354,2]
[377963414,1754632232285,-1200.0,0.00018408,2]
[377963415,1754632232294,-216.37583219,0.00018429,2]
[377963416,1754632232304,-1364.47793437,0.00018434,2]
[377963417,1754632232313,-300.0,0.00018512,2]
[377963418,1754632232323,-1445.76598152,0.00018513,2]
[377963419,1754632232332,-1527.05402867,0.00018593,2]
[377963420,1754632232341,-178.09,0.00018608,2]
[377963421,1754632232351,-224.87,0.0001861,2]
[377963422,1754632232360,-701.46,0.0001861,2]
[377963423,1754632232369,-3071.64210505,0.0001861,2]
[377963424,1754632232398,-1255.42488604,0.0001861,2]
[377963431,1754632237770,-13491.54428766,0.0001861,2]
[377963432,1754632237935,-2000.0,0.0001861,2]
[377963433,1754632237946,-854.00691663,0.0001861,2]
[377963434,1754632237991,-571.42212123,0.0001861,2]
[377963435,1754632238002,-4646.84968339,0.0001861,2]
[377963436,1754632238012,-7290.25410299,0.0001861,2]
[377963437,1754632238023,-996.57589701,0.0001861,2]
[377963438,1754632238033,-163.87,0.00018623,2]
[377963439,1754632238042,-1608.34207583,0.00018672,2]
[377963440,1754632238051,-600.0,0.00018718,2]
[377963441,1754632238060,-298.01,0.00018718,2]
[377963442,1754632238069,-150.0,0.00018745,2]
[377963443,1754632238078,-756.40767404,0.00018752,2]
[377963444,1754632238099,-798.87705341,0.00018752,2]
[377963449,1754632239864,-134.34539553,0.00018752,2]
[377963451,1754632239874,-150.0,0.00018761,2]
[377963453,1754632239885,-150.0,0.00018762,2]
[377963454,1754632239894,-150.0,0.00018763,2]
[377963455,1754632239903,-199.59442644,0.00018771,2]
[377963456,1754632239912,-267.46074303,0.00018771,2]
[377963457,1754632239921,-1852.12818222,0.00018771,2]
[377963458,1754632239933,-3347.30866222,0.00018771,2]
[377963459,1754632239942,-150.0,0.00018778,2]
[377963460,1754632239952,-530.25726322,0.00018781,2]
[377963461,1754632239961,-4187.9158,0.00018782,2]
[377963462,1754632239971,-165.6174839,0.00018782,2]
[377963463,1754632239980,-165.8143733,0.00018782,2]
[377963464,1754632239989,-1045.19711394,0.00018782,2]
[377963465,1754632239998,-162.85197107,0.00018782,2]
[377963466,1754632240007,-150.0,0.00018787,2]
[377963467,1754632240017,-150.0,0.00018793,2]
[377963468,1754632240027,-150.0,0.00018794,2]
[377963469,1754632240036,-1045.19711391,0.00018795,2]
[377963470,1754632240045,-165.61748385,0.00018802,2]
[377963471,1754632240055,-1000.0,0.00018804,2]
[377963472,1754632240064,-500.0,0.00018807,2]
[377963473,1754632240073,-419.64994957,0.00018807,2]
[377963474,1754632240082,-500.0,0.00018807,2]
[377963475,1754632240091,-150.0,0.00018808,2]
[377963476,1754632240101,-1045.19711391,0.00018808,2]
[377963477,1754632240110,-950.26961,0.0001881,2]
[377963478,1754632240119,-877.96342722,0.00018813,2]
[377963479,1754632240129,-3019.41352853,0.00018815,2]
[377963480,1754632240138,-165.61748385,0.00018821,2]
[377963481,1754632240147,-1045.19711391,0.00018821,2]
[377963482,1754632240156,-5391.81600769,0.00018826,2]
[377963483,1754632240165,-1770.91817014,0.00018831,2]
[377963484,1754632240177,-1045.19711391,0.00018834,2]
[377963485,1754632240187,-165.61748385,0.00018841,2]
[377963486,1754632240196,-1045.19711391,0.00018848,2]
[377963487,1754632240207,-600.0,0.00018859,2]
[377963488,1754632240217,-500.0,0.00018859,2]
[377963489,1754632240226,-151.0,0.00018859,2]
[377963490,1754632240235,-500.0,0.00018859,2]
[377963491,1754632240245,-500.0,0.00018859,2]
[377963492,1754632240256,-430.05473421,0.00018859,2]
[377963493,1754632240265,-160.0,0.00018859,2]
[377963494,1754632240275,-151.0,0.00018859,2]
[377963495,1754632240286,-500.0,0.00018859,2]
[377963496,1754632240295,-151.0,0.00018859,2]
[377963497,1754632240304,-500.0,0.00018859,2]
[377963498,1754632240314,-500.0,0.00018859,2]
[377963499,1754632240323,-500.0,0.00018859,2]
[377963500,1754632240332,-151.0,0.00018859,2]
[377963501,1754632240341,-500.0,0.00018859,2]
[377963502,1754632240350,-500.0,0.00018859,2]
[377963503,1754632240360,-151.0,0.00018859,2]
[377963504,1754632240369,-500.0,0.00018859,2]
[377963505,1754632240378,-151.0,0.00018859,2]
[377963506,1754632240387,-500.0,0.00018859,2]
[377963507,1754632240396,-500.0,0.00018859,2]
[377963508,1754632240406,-500.0,0.00018859,2]
[377963509,1754632240415,-151.0,0.00018859,2]
[377963510,1754632240424,-151.0,0.00018859,2]
[377963511,1754632240433,-151.0,0.00018859,2]
[377963512,1754632240443,-151.0,0.00018859,2]
[377963513,1754632240453,-600.0,0.00018859,2]
[377963514,1754632240462,-151.0,0.00018859,2]
[377963515,1754632240471,-600.0,0.00018859,2]
[377963516,1754632240484,-151.0,0.00018859,2]
[377963517,1754632240493,-600.0,0.00018859,2]
[377963518,1754632240502,-600.0,0.00018859,2]
[377963519,1754632240511,-600.0,0.00018859,2]
[377963520,1754632240522,-600.0,0.00018859,2]
[377963521,1754632240531,-600.0,0.00018859,2]
[377963522,1754632240540,-600.0,0.00018859,2]
[377963523,1754632240549,-255.86758873,0.00018859,2]
[377963524,1754632240561,-600.0,0.00018859,2]
[377963525,1754632240572,-600.0,0.00018859,2]
[377963526,1754632240583,-600.0,0.00018859,2]
[377963527,1754632240592,-200.0,0.00018859,2]
[377963528,1754632240602,-151.0,0.00018859,2]
[377963529,1754632240611,-500.0,0.00018859,2]
[377963530,1754632240621,-500.0,0.00018859,2]
[377963531,1754632240630,-500.0,0.00018859,2]
[377963532,1754632240639,-500.0,0.00018859,2]
[377963533,1754632240648,-500.0,0.00018859,2]
[377963534,1754632240658,-500.0,0.00018859,2]
[377963535,1754632240667,-500.0,0.00018859,2]
[377963536,1754632240676,-500.0,0.00018859,2]
[377963537,1754632240685,-500.0,0.00018859,2]
[377963538,1754632240694,-513.99671889,0.00018859,2]
[377963539,1754632240703,-165.61748385,0.00018861,2]
[377963540,1754632240712,-1045.19711391,0.00018861,2]
[377963541,1754632240721,-500.0,0.00018873,2]
[377963542,1754632240730,-500.0,0.00018873,2]
[377963543,1754632240739,-500.0,0.00018873,2]
[377963544,1754632240748,-500.0,0.00018873,2]
[377963545,1754632240761,-500.0,0.00018873,2]
[377963546,1754632240778,-500.0,0.00018873,2]
[377963547,1754632240796,-502.79524056,0.00018873,2]
[377963548,1754632240805,-159.03229537,0.00018873,2]
[377963549,1754632240814,-502.23686703,0.00018873,2]
[377963550,1754632240823,-1045.19711391,0.00018874,2]
[377963551,1754632240832,-165.61748385,0.0001888,2]
[377963552,1754632240842,-5591.31319997,0.00018881,2]
[377963553,1754632240851,-1054.82869857,0.00018881,5]
[377963554,1754632240860,-868.53,0.00018881,2]
[377963555,1754632240869,-400.0,0.00018881,2]
[377963556,1754632240878,-400.0,0.00018881,2]
[377963557,1754632240888,-418.97,0.00018881,2]
[377963558,1754632240897,-400.0,0.00018881,2]
[377963559,1754632240906,-645.9,0.00018881,2]
[377963560,1754632240915,-400.0,0.00018881,2]
[377963561,1754632240924,-478.11,0.00018881,2]
[377963562,1754632240933,-400.0,0.00018881,2]
[377963563,1754632240942,-400.0,0.00018881,2]
[377963564,1754632240951,-476.53,0.00018881,2]
[377963565,1754632240961,-400.0,0.00018881,2]
[377963566,1754632240971,-474.28,0.00018881,2]
[377963567,1754632240980,-693.78,0.00018881,2]
[377963568,1754632240989,-605.62,0.00018881,2]
[377963569,1754632240999,-400.0,0.00018881,2]
[377963570,1754632241007,-760.54,0.00018881,2]
[377963571,1754632241017,-400.0,0.00018881,2]
[377963572,1754632241026,-721.45,0.00018881,2]
[377963573,1754632241035,-628.91,0.00018881,2]
[377963574,1754632241044,-474.27,0.00018881,2]
[377963575,1754632241053,-991.04,0.00018881,2]
[377963576,1754632241062,-400.0,0.00018881,2]
[377963577,1754632241071,-968.61,0.00018881,2]
[377963578,1754632241080,-630.08,0.00018881,2]
[377963579,1754632241090,-504.05,0.00018881,2]
[377963580,1754632241099,-655.17,0.00018881,2]
[377963581,1754632241108,-639.8,0.00018881,2]
[377963582,1754632241118,-809.83,0.00018881,2]
[377963583,1754632241127,-400.0,0.00018881,2]
[377963584,1754632241136,-400.0,0.00018881,2]
[377963585,1754632241145,-765.79,0.00018881,2]
[377963586,1754632241155,-400.0,0.00018881,2]
[377963587,1754632241166,-1013.99,0.00018881,2]
[377963588,1754632241175,-402.99,0.00018881,2]
[377963589,1754632241436,-783.88,0.00018881,2]
[377963590,1754632241446,-511.4,0.00018881,2]
[377963591,1754632241455,-541.13,0.00018881,2]
[377963592,1754632241465,-675.05,0.00018881,2]
[377963593,1754632241476,-444.97,0.00018881,2]
[377963594,1754632241487,-400.0,0.00018881,2]
[377963595,1754632241497,-823.4,0.00018881,2]
[377963596,1754632241506,-961.18,0.00018881,2]
[377963597,1754632241519,-1411.24,0.00018881,2]
[377963598,1754632241528,-947.89,0.00018881,2]
[377963599,1754632241538,-400.0,0.00018881,2]
[377963600,1754632241547,-400.0,0.00018881,2]
[377963601,1754632241557,-704.91,0.00018881,2]
[377963602,1754632241569,-884.12,0.00018881,2]
[377963603,1754632241579,-543.58,0.00018881,2]
[377963604,1754632241587,-418.03,0.00018881,2]
[377963605,1754632241597,-400.0,0.00018881,2]
[377963606,1754632241606,-400.0,0.00018881,2]
[377963607,1754632241616,-1210.82,0.00018881,2]
[377963608,1754632241625,-400.0,0.00018881,2]
[377963609,1754632241634,-767.04,0.00018881,2]
[377963610,1754632241645,-400.0,0.00018881,2]
[377963611,1754632241655,-696.96,0.00018881,2]
[377963612,1754632241665,-618.3,0.00018881,2]
[377963613,1754632241675,-400.0,0.00018881,2]
[377963614,1754632241684,-400.0,0.00018881,2]
[377963615,1754632241694,-584.0,0.00018881,2]
[377963616,1754632241704,-252.01753202,0.00018881,2]
[377963617,1754632241713,-400.0,0.00018881,2]
[377963618,1754632241722,-400.0,0.00018881,2]
[377963619,1754632241731,-603.31,0.00018881,2]
[377963620,1754632241740,-400.0,0.00018881,2]
[377963621,1754632241750,-400.0,0.00018881,2]
[377963622,1754632241759,-400.0,0.00018881,2]
[377963623,1754632241770,-400.0,0.00018881,2]
[377963624,1754632241780,-400.0,0.00018881,2]
[377963625,1754632241789,-677.15,0.00018881,2]
[377963626,1754632241799,-400.0,0.00018881,2]
[377963627,1754632241808,-400.0,0.00018881,2]
[377963628,1754632241817,-843.74,0.00018881,2]
[377963629,1754632241827,-400.0,0.00018881,2]
[377963630,1754632241836,-603.61,0.00018881,2]
[377963631,1754632241845,-400.0,0.00018881,2]
[377963632,1754632241855,-648.14,0.00018881,2]
[377963633,1754632241864,-647.54,0.00018881,2]
[377963634,1754632241874,-400.0,0.00018881,2]
[377963635,1754632241883,-1012.88,0.00018881,2]
[377963636,1754632241892,-400.0,0.00018881,2]
[377963637,1754632241902,-400.0,0.00018881,2]
[377963638,1754632241911,-1196.53,0.00018881,2]
[377963639,1754632241921,-400.0,0.00018881,2]
[377963640,1754632241930,-400.0,0.00018881,2]
[377963641,1754632241939,-982.79,0.00018881,2]
[377963642,1754632241948,-400.0,0.00018881,2]
[377963643,1754632241957,-529.94,0.00018881,2]
[377963644,1754632241966,-916.42,0.00018881,2]
[377963645,1754632241975,-804.49,0.00018881,2]
[377963646,1754632241984,-400.0,0.00018881,2]
[377963647,1754632241993,-400.0,0.00018881,2]
[377963648,1754632242003,-400.0,0.00018881,2]
[377963649,1754632242012,-400.0,0.00018881,2]
[377963650,1754632242021,-806.51,0.00018881,2]
[377963651,1754632242031,-400.0,0.00018881,2]
[377963652,1754632242040,-602.86,0.00018881,2]
[377963653,1754632242049,-501.75,0.00018881,2]
[377963654,1754632242059,-400.0,0.00018881,2]
[377963655,1754632242069,-400.0,0.00018881,2]
[377963656,1754632242078,-400.0,0.00018881,2]
[377963657,1754632242088,-922.34,0.00018881,2]
[377963658,1754632242097,-1339.09,0.00018881,2]
[377963659,1754632242108,-501.9,0.00018881,2]
[377963660,1754632242117,-722.58,0.00018881,2]
[377963661,1754632242127,-559.79,0.00018881,2]
[377963662,1754632242136,-400.0,0.00018881,2]
[377963663,1754632242145,-400.0,0.00018881,2]
[377963664,1754632242154,-858.84,0.00018881,2]
[377963665,1754632242163,-400.0,0.00018881,2]
[377963666,1754632242172,-400.0,0.00018881,2]
[377963667,1754632242182,-858.71,0.00018881,2]
[377963668,1754632242191,-785.41,0.00018881,2]
[377963669,1754632242201,-442.04,0.00018881,2]
[377963670,1754632242210,-626.55,0.00018881,2]
[377963671,1754632242220,-720.74,0.00018881,2]
[377963672,1754632242229,-400.0,0.00018881,2]
[377963673,1754632242239,-400.0,0.00018881,2]
[377963674,1754632242248,-400.0,0.00018881,2]
[377963675,1754632242257,-400.0,0.00018881,2]
[377963676,1754632242267,-400.0,0.00018881,2]
[377963677,1754632242276,-400.0,0.00018881,2]
[377963678,1754632242285,-649.86,0.00018881,2]
[377963679,1754632242296,-1099.79,0.00018881,2]
[377963680,1754632242306,-822.0,0.00018881,2]
[377963681,1754632242315,-295.09431352,0.00018881,2]
[377963682,1754632242324,-400.0,0.00018881,2]
[377963683,1754632242334,-400.0,0.00018881,2]
[377963684,1754632242343,-1990.8,0.00018881,2]
[377963685,1754632242352,-907.25,0.00018881,2]
[377963686,1754632242361,-747.56,0.00018881,2]
[377963687,1754632242371,-400.0,0.00018881,2]
[377963688,1754632242381,-400.0,0.00018881,2]
[377963689,1754632242390,-400.0,0.00018881,2]
[377963690,1754632242400,-886.72,0.00018881,2]
[377963691,1754632242409,-400.0,0.00018881,2]
[377963692,1754632242419,-400.0,0.00018881,2]
[377963693,1754632242428,-1363.84,0.00018881,2]
[377963694,1754632242438,-425.62714268,0.00018881,2]
[377963695,1754632242447,-471.51,0.00018881,2]
[377963696,1754632242457,-400.0,0.00018881,2]
[377963697,1754632242466,-772.62,0.00018881,2]
[377963698,1754632242476,-737.08,0.00018881,2]
[377963699,1754632242487,-1061.9,0.00018881,2]
[377963700,1754632242496,-400.0,0.00018881,2]
[377963701,1754632242506,-400.0,0.00018881,2]
[377963702,1754632242516,-400.0,0.00018881,2]
[377963703,1754632242525,-1486.35,0.00018881,2]
[377963704,1754632242534,-400.0,0.00018881,2]
[377963705,1754632242544,-400.0,0.00018881,2]
[377963706,1754632242553,-1034.24,0.00018881,2]
[377963707,1754632242563,-400.0,0.00018881,2]
[377963708,1754632242573,-612.61,0.00018881,2]
[377963709,1754632242583,-1049.27,0.00018881,2]
[377963710,1754632242592,-945.48,0.00018881,2]
[377963711,1754632242602,-688.21,0.00018881,2]
[377963712,1754632242611,-552.98,0.00018881,2]
[377963713,1754632242620,-400.0,0.00018881,2]
[377963714,1754632242629,-969.83,0.00018881,2]
[377963715,1754632242639,-400.0,0.00018881,2]
[377963716,1754632242648,-576.63,0.00018881,2]
[377963717,1754632242657,-400.0,0.00018881,2]
[377963718,1754632242666,-1350.63,0.00018881,2]
[377963719,1754632242675,-1425.15,0.00018881,2]
[377963720,1754632242685,-400.0,0.00018881,2]
[377963721,1754632242694,-874.23,0.00018881,2]
[377963722,1754632242703,-400.0,0.00018881,2]
[377963723,1754632242712,-969.23,0.00018881,2]
[377963724,1754632242722,-583.6,0.00018881,2]
[377963725,1754632242731,-2016.93,0.00018881,2]
[377963726,1754632242741,-428.78,0.00018881,2]
[377963727,1754632242750,-400.0,0.00018881,2]
[377963728,1754632242759,-737.83,0.00018881,2]
[377963729,1754632242769,-400.0,0.00018881,2]
[377963730,1754632242778,-400.0,0.00018881,2]
[377963731,1754632242787,-527.9,0.00018881,2]
[377963732,1754632242796,-1039.55016553,0.00018881,2]
[377963733,1754632242805,-400.0,0.00018881,2]
[377963734,1754632242814,-400.0,0.00018881,2]
[377963735,1754632242824,-765.26,0.00018881,2]
[377963736,1754632242832,-511.64,0.00018881,2]
[377963737,1754632242842,-765.26,0.00018881,2]
[377963738,1754632242851,-1490.02,0.00018881,2]
[377963739,1754632242860,-400.0,0.00018881,2]
[377963740,1754632242869,-466.92894023,0.00018881,2]
[377963741,1754632242879,-349.10777843,0.00018881,2]
[377963742,1754632242888,-1408.87,0.00018881,2]
[377963743,1754632242897,-176.4495154,0.00018881,2]
[377963744,1754632242907,-525.36,0.00018881,2]
[377963745,1754632242916,-916.93,0.00018881,2]
[377963746,1754632242925,-400.0,0.00018881,2]
[377963747,1754632242934,-573.4,0.00018881,2]
[377963748,1754632242944,-400.0,0.00018881,2]
[377963749,1754632242953,-400.0,0.00018881,2]
[377963750,1754632242962,-522.65,0.00018881,2]
[377963751,1754632242971,-1106.83,0.00018881,2]
[377963752,1754632242980,-435.04,0.00018881,2]
[377963753,1754632242989,-409.63,0.00018881,2]
[377963754,1754632242998,-828.88,0.00018881,2]
[377963755,1754632243007,-407.84,0.00018881,2]
[377963756,1754632243016,-659.67,0.00018881,2]
[377963757,1754632243026,-400.0,0.00018881,2]
[377963758,1754632243035,-509.45,0.00018881,2]
[377963759,1754632243044,-400.0,0.00018881,2]
[377963760,1754632243053,-400.0,0.00018881,2]
[377963761,1754632243062,-406.54,0.00018881,2]
[377963762,1754632243072,-734.62,0.00018881,2]
[377963763,1754632243081,-754.63,0.00018881,2]